bitfinex-derivatives/quotes_SOLF0:USTF0_20250509
["timestamp","ask_amount","ask_price","bid_price","bid_amount"]
[1746765280234,29.06,161.49,161.44,6.1949]
[1746765280841,6.1942,161.47,161.44,6.1949]
[1746765283141,6.1937,161.48,161.45,6.1947]
[1746765283443,10.24984505,161.56,161.42,6.19854505]
[1746765283643,58.0,161.55,161.42,8.24104505]
[1746765284544,6.1931,161.5,161.45,6.1945]
[1746765284937,29.0,161.51,161.45,6.1945]
[1746765285243,29.0,161.51,161.42,8.24104505]
[1746765285445,58.0,161.51,161.42,2.0425]
[1746765286147,58.0,161.51,161.41,35.196]
[1746765286443,1.9654,161.5,161.41,35.196]
[1746765286647,6.1954,161.44,161.41,35.196]
[1746765288241,6.1955,161.43,161.41,35.196]
[1746765288447,29.0,161.47,161.42,6.1959]
[1746765288746,6.1951,161.45,161.42,6.1959]
[1746765289338,6.1951,161.44,161.41,35.1961]
[1746765289746,29.0,161.47,161.41,29.0]
[1746765290046,6.195,161.45,161.42,6.1959]
[1746765291148,6.1952,161.44,161.41,35.1961]
[1746765291648,6.1954,161.44,161.41,29.0]
[1746765292245,6.1954,161.44,161.41,6.1959]
[1746765293549,6.1948,161.45,161.42,6.1959]
[1746765294348,6.1944,161.46,161.43,6.1954]
[1746765294749,29.0,161.5,161.42,6.19854505]
[1746765295051,6.1935,161.49,161.43,28.98]
[1746765296050,6.1935,161.49,161.46,6.1944]
[1746765296250,6.1935,161.49,161.43,28.98]
[1746765296452,6.1935,161.49,161.43,30.9341]
[1746765296750,6.1935,161.49,161.46,6.1941]
[1746765297157,35.193,161.5,161.43,30.9341]
[1746765297347,29.0,161.53,161.45,6.19854505]
[1746765297549,29.0,161.53,161.46,2.0864]
[1746765297846,29.0,161.53,161.47,28.98]
[1746765298047,35.192,161.53,161.47,28.98]
[1746765298451,35.192,161.53,161.49,6.1929]
[1746765299155,35.192,161.53,161.5,6.1928]
[1746765299658,6.1922,161.52,161.49,6.1931]
[1746765301154,6.1922,161.52,161.48,6.1934]
[1746765301354,6.1926,161.51,161.48,6.1934]
[1746765301554,29.0,161.53,161.47,28.98]
[1746765301756,29.0,161.56,161.51,6.1921]
[1746765302252,6.1915,161.54,161.51,6.1921]
[1746765302954,6.1917,161.53,161.5,6.1927]
[1746765307457,6.1914,161.54,161.51,6.1924]
[1746765308256,6.1917,161.53,161.5,6.1927]
[1746765308456,29.0,161.56,161.47,64.17854505]
[1746765308763,29.0,161.56,161.46,4.1087]
[1746765309055,1.9888,161.55,161.46,2.0864]
[1746765309257,6.1931,161.5,161.47,6.1939]
[1746765309658,28.92,161.52,161.46,2.0864]
[1746765309857,6.1922,161.52,161.48,6.1932]
[1746765310559,6.1918,161.53,161.46,2.0864]
[1746765310858,28.92,161.55,161.47,6.19854505]
[1746765311058,28.92,161.55,161.48,28.94]
[1746765311257,6.1917,161.53,161.48,28.94]
[1746765311454,6.1917,161.53,161.47,6.19854505]
[1746765311659,6.1917,161.53,161.5,6.1925]
[1746765312458,6.1921,161.52,161.49,6.1931]
[1746765313561,6.1928,161.5,161.48,28.94]
[1746765313758,6.1928,161.5,161.47,6.1937]
[1746765314264,6.1932,161.49,161.46,8.2806]
[1746765314562,6.1932,161.49,161.46,6.1942]
[1746765314962,28.92,161.51,161.44,28.92]
[1746765315158,28.92,161.51,161.41,37.06094505]
[1746765315355,28.92,161.51,161.42,28.92]
[1746765315559,6.1936,161.48,161.42,28.92]
[1746765315860,28.92,161.51,161.42,28.92]
[1746765316063,28.92,161.51,161.44,6.1948]
[1746765317563,6.1935,161.49,161.45,6.1947]
[1746765317963,28.92,161.51,161.45,6.1947]
[1746765318163,28.92,161.51,161.44,6.195]
[1746765318563,6.1938,161.48,161.44,6.195]
[1746765318964,28.92,161.51,161.44,6.195]
[1746765319963,6.1941,161.47,161.44,6.195]
[1746765322266,6.1937,161.48,161.45,6.1947]
[1746765322765,6.194,161.47,161.44,6.195]
[1746765322970,28.92,161.51,161.42,28.92]
[1746765324269,6.193,161.5,161.47,6.1937]
[1746765327479,6.1932,161.49,161.46,6.1942]
[1746765328078,28.92,161.51,161.44,6.1949]
[1746765329078,6.1938,161.48,161.44,6.1949]
[1746765329377,28.92,161.51,161.41,30.8624]
[1746765329767,6.194,161.48,161.44,6.1949]
[1746765329973,28.92,161.51,161.44,6.1949]
[1746765330177,6.1939,161.48,161.44,6.1949]
[1746765330377,28.92,161.51,161.44,6.1949]
[1746765330676,6.1943,161.47,161.43,6.1954]
[1746765330978,28.92,161.51,161.43,6.1954]
[1746765331277,6.1943,161.47,161.43,6.1954]
[1746765331579,28.92,161.51,161.41,8.1384]
[1746765331783,28.92,161.49,161.41,6.196]
[1746765331982,28.92,161.49,161.37,31.0293]
[1746765332274,2.0319,161.48,161.37,59.9493]
[1746765332477,28.94,161.47,161.37,57.86]
[1746765332678,28.94,161.47,161.39,6.197]
[1746765333179,6.1959,161.43,161.39,6.197]
[1746765333569,6.1959,161.42,161.39,6.197]
[1746765334081,28.94,161.47,161.39,6.197]
[1746765334280,6.1956,161.43,161.39,6.197]
[1746765334878,6.1956,161.43,161.4,6.1966]
[1746765335076,6.1952,161.44,161.4,6.1966]
[1746765336180,6.1955,161.43,161.4,6.1966]
[1746765336478,6.1955,161.43,161.39,6.197]
[1746765336680,6.1958,161.43,161.39,6.197]
[1746765336974,28.94,161.47,161.4,6.1964]
[1746765337576,28.94,161.47,161.39,6.1969]
[1746765337879,6.1958,161.43,161.39,6.1969]
[1746765338075,28.94,161.47,161.39,6.1969]
[1746765338582,6.1959,161.42,161.39,6.1969]
[1746765339081,28.94,161.47,161.39,6.1969]
[1746765339383,6.1957,161.43,161.39,6.1969]
[1746765340479,6.1957,161.43,161.4,6.1966]
[1746765340682,6.1957,161.43,161.37,28.94]
[1746765340981,6.1957,161.43,161.39,6.1968]
[1746765341780,6.1957,161.43,161.4,6.1966]
[1746765342377,6.1957,161.43,161.39,6.1969]
[1746765343982,6.1959,161.42,161.39,6.1969]
[1746765344980,28.9,161.43,161.37,6.1975]
[1746765346679,28.9,161.43,161.34,63.99854505]
[1746765347478,28.9,161.43,161.4,6.1964]
[1746765347882,28.9,161.43,161.39,6.1969]
[1746765348183,6.1961,161.42,161.34,63.99854505]
[1746765348880,6.1961,161.42,161.38,6.1972]
[1746765349083,35.0957,161.43,161.34,63.99854505]
[1746765349376,28.9,161.43,161.34,63.99854505]
[1746765350082,6.196,161.42,161.34,63.99854505]
[1746765350782,28.9,161.43,161.34,63.99854505]
[1746765351180,28.9,161.43,161.33,28.9]
[1746765351382,28.9,161.43,161.31,6.19854505]
[1746765351580,6.0854,161.42,161.32,28.9]
[1746765351780,28.9,161.41,161.33,6.1993]
[1746765351981,28.9,161.41,161.32,28.9]
[1746765352181,6.1973,161.39,161.35,6.1983]
[1746765352381,6.1973,161.39,161.32,28.9]
[1746765352586,28.9,161.41,161.33,28.9]
[1746765353086,6.1972,161.39,161.33,28.9]
[1746765353688,6.1972,161.39,161.35,6.1982]
[1746765353987,6.1974,161.38,161.35,6.1982]
[1746765354689,6.1972,161.39,161.35,6.1982]
[1746765355187,6.1975,161.38,161.35,6.1982]
[1746765355887,6.1975,161.38,161.34,6.1989]
[1746765356988,6.1979,161.37,161.34,6.1989]
[1746765360592,6.1982,161.36,161.34,6.1989]
[1746765361688,6.1982,161.36,161.33,28.9]
[1746765362289,6.1982,161.36,161.33,35.0991]
[1746765362789,6.1987,161.35,161.33,28.9]
[1746765362989,28.9,161.41,161.33,28.9]
[1746765363293,28.9,161.41,161.32,6.1996]
[1746765363490,6.1988,161.35,161.32,35.0796]
[1746765364894,6.1984,161.36,161.33,6.1992]
[1746765366395,6.1986,161.35,161.32,35.0796]
[1746765366797,28.92,161.39,161.32,28.88]
[1746765367004,6.1984,161.36,161.33,6.1991]
[1746765367293,28.92,161.39,161.32,28.88]
[1746765367596,28.92,161.39,161.32,35.0795]
[1746765368698,6.1986,161.35,161.32,35.0795]
[1746765369198,6.199,161.34,161.32,28.88]
[1746765369497,28.92,161.39,161.32,28.88]
[1746765369897,28.92,161.39,161.31,57.8]
[1746765370294,28.92,161.39,161.3,5.9094]
[1746765370497,28.92,161.39,161.31,6.2]
[1746765370700,28.92,161.39,161.3,34.7894]
[1746765371499,28.92,161.39,161.29,28.92]
[1746765371803,6.2,161.32,161.28,35.0812]
[1746765372296,28.86,161.35,161.28,6.2012]
[1746765372793,28.86,161.35,161.27,35.0815]
[1746765372995,28.86,161.35,161.27,6.2015]
[1746765373500,6.2002,161.31,161.27,6.2015]
[1746765374300,6.2002,161.31,161.28,6.2012]
[1746765375001,28.86,161.35,161.26,8.19]
[1746765375202,35.05854505,161.35,161.26,8.19]
[1746765375396,35.05854505,161.35,161.25,28.86]
[1746765375703,35.05854505,161.35,161.24,28.88]
[1746765375704,6.2012,161.29,161.24,28.88]
[1746765375900,28.88,161.31,161.24,28.88]
[1746765376195,6.2008,161.3,161.26,6.2018]
[1746765376400,28.88,161.31,161.26,6.2018]
[1746765376799,6.2006,161.3,161.26,6.2018]
[1746765377702,6.2009,161.29,161.26,6.2018]
[1746765379999,6.2006,161.3,161.26,6.2018]
[1746765380300,6.2006,161.3,161.24,28.88]
[1746765380604,6.2006,161.3,161.26,6.2018]
[1746765381097,6.23870146,161.27,161.01,174.67669444]
[1746765381305,6.24109854,161.23,161.09,6.24109854]
[1746765381495,6.2051,161.19,161.13,6.207]
[1746765381694,6.2051,161.19,161.08,3.9185]
[1746765381695,57.74,161.22,161.12,35.10109854]
[1746765382100,6.2047,161.2,161.14,6.2066]
[1746765382300,28.88,161.2,161.12,35.10109854]
[1746765382701,28.88,161.2,161.12,28.86]
[1746765383412,6.2052,161.18,161.13,6.207]
[1746765383710,28.88,161.2,161.1,28.88]
[1746765384210,35.12109854,161.19,161.08,3.9185]
[1746765384708,6.2067,161.14,161.1,6.208]
[1746765385008,28.88,161.15,161.08,3.9185]
[1746765385310,28.88,161.15,161.1,6.2082]
[1746765385606,28.88,161.15,161.08,3.9185]
[1746765385805,28.88,161.15,161.1,6.2079]
[1746765386006,28.88,161.15,161.08,3.9185]
[1746765386403,28.88,161.15,161.1,6.2082]
[1746765386600,28.88,161.15,161.08,3.9185]
[1746765387508,28.88,161.15,161.11,6.2075]
[1746765387807,28.88,161.15,161.08,3.9185]
[1746765389207,28.88,161.15,161.12,6.2071]
[1746765390810,35.0863,161.15,161.11,6.2077]
[1746765391107,28.88,161.15,161.09,28.88]
[1746765391709,28.88,161.15,161.12,6.2074]
[1746765392209,28.88,161.15,161.09,28.88]
[1746765393811,28.88,161.15,161.13,6.207]
[1746765395610,6.2052,161.18,161.09,28.88]
[1746765395920,28.9,161.17,161.09,28.88]
[1746765396210,28.9,161.17,161.14,6.2064]
[1746765396714,28.9,161.17,161.16,6.2059]
[1746765397011,28.9,161.2,161.14,28.94]
[1746765397816,6.2044,161.2,161.14,28.94]
[1746765398512,6.2048,161.19,161.15,6.2062]
[1746765399019,6.2045,161.2,161.15,6.2062]
[1746765399317,6.2045,161.2,161.16,6.2058]
[1746765399510,28.9,161.21,161.14,28.94]
[1746765399817,35.1041,161.21,161.17,6.2052]
[1746765400517,35.1041,161.21,161.18,6.2051]
[1746765401423,35.1041,161.21,161.17,6.2054]
[1746765401616,6.2044,161.2,161.14,28.94]
[1746765402025,35.1043,161.21,161.14,28.94]
[1746765402618,35.1043,161.21,161.17,6.2054]
[1746765402817,6.2044,161.2,161.14,28.94]
[1746765403321,6.2044,161.2,161.16,6.2057]
[1746765405025,6.2044,161.2,161.17,6.2054]
[1746765406622,6.2041,161.21,161.17,6.2054]
[1746765407526,6.2045,161.2,161.17,6.2054]
[1746765412228,6.2037,161.22,161.14,28.94]
[1746765412429,6.2037,161.22,161.15,2.0071]
[1746765412629,6.2033,161.23,161.19,6.2044]
[1746765412827,28.88,161.24,161.19,28.88]
[1746765414230,28.88,161.24,161.21,6.2037]
[1746765415636,35.0829,161.24,161.21,6.2037]
[1746765416238,28.88,161.24,161.22,6.2035]
[1746765417130,35.0828,161.24,161.19,28.88]
[1746765417436,28.88,161.24,161.19,28.88]
[1746765417736,28.88,161.24,161.22,6.2032]
[1746765420645,35.0828,161.24,161.21,6.2038]
[1746765421241,6.2034,161.23,161.19,35.0844]
[1746765421540,28.88,161.24,161.19,28.88]
[1746765422443,6.2033,161.23,161.18,28.88]
[1746765422841,28.88,161.24,161.18,28.88]
[1746765423542,893.06,161.35,161.18,35.12109854]
[1746765423737,6.2016,161.28,161.19,2.1004]
[1746765424044,6.2016,161.28,161.2,28.88]
[1746765424343,35.081,161.29,161.2,28.88]
[1746765424641,28.88,161.29,161.2,28.88]
[1746765424844,28.88,161.29,161.21,2.0632]
[1746765425144,28.88,161.29,161.22,28.88]
[1746765426139,6.2016,161.28,161.24,6.2028]
[1746765426339,28.88,161.29,161.22,28.88]
[1746765426737,28.88,161.29,161.23,6.203]
[1746765427244,6.2023,161.26,161.23,6.203]
[1746765427545,28.88,161.29,161.22,35.0835]
[1746765427744,6.2024,161.26,161.22,35.0835]
[1746765427945,6.2024,161.26,161.22,6.2035]
[1746765428445,28.86,161.25,161.21,6.2037]
[1746765428653,28.86,161.24,161.17,30.9488]
[1746765429144,6.2034,161.23,161.17,2.0688]
[1746765429542,6.2034,161.23,161.19,6.2044]
[1746765429940,6.2034,161.23,161.2,6.2043]
[1746765430543,6.2034,161.23,161.19,6.2046]
[1746765430742,6.2039,161.22,161.17,2.0688]
[1746765430941,6.2039,161.22,161.16,30.9991]
[1746765431243,6.2039,161.22,161.16,2.1191]
[1746765431443,6.2039,161.22,161.16,30.9991]
[1746765431643,6.2039,161.22,161.18,6.2048]
[1746765432040,28.86,161.24,161.15,30.9543]
[1746765432237,28.86,161.24,161.18,6.2048]
[1746765432540,6.2037,161.22,161.18,6.2048]
[1746765432839,28.86,161.24,161.19,6.2045]
[1746765433037,6.2035,161.23,161.19,6.2045]
[1746765433237,28.86,161.24,161.19,6.2045]
[1746765433748,6.2033,161.23,161.2,6.2043]
[1746765434047,28.86,161.24,161.16,28.88]
[1746765434447,28.86,161.24,161.18,6.2051]
[1746765434948,6.2038,161.22,161.18,6.2051]
[1746765436648,6.204,161.21,161.18,6.2051]
[1746765436842,28.86,161.24,161.18,6.2051]
[1746765437947,6.2039,161.22,161.18,6.2051]
[1746765438148,6.2039,161.22,161.19,6.2047]
[1746765438349,6.2039,161.22,161.16,28.88]
[1746765438650,6.2033,161.23,161.16,28.88]
[1746765438849,28.86,161.24,161.16,35.12109854]
[1746765439250,28.86,161.24,161.16,28.88]
[1746765440052,35.0632,161.24,161.16,28.88]
[1746765440550,6.2032,161.23,161.2,6.2041]
[1746765440751,28.86,161.24,161.2,6.2041]
[1746765441047,28.86,161.24,161.16,28.88]
[1746765441248,6.2023,161.26,161.17,8.24169854]
[1746765441447,35.0623,161.26,161.17,8.24169854]
[1746765441955,35.0623,161.26,161.22,6.2033]
[1746765442750,35.0623,161.26,161.23,6.2031]
[1746765443752,6.2025,161.25,161.2,28.92]
[1746765444149,28.86,161.26,161.2,28.92]
[1746765444451,35.0621,161.26,161.22,6.2033]
[1746765445254,6.2025,161.25,161.22,6.2033]
[1746765445651,28.86,161.26,161.22,6.2033]
[1746765445847,28.86,161.26,161.2,28.92]
[1746765446151,28.86,161.29,161.21,6.24109854]
[1746765446356,6.2014,161.28,161.21,10.31699854]
[1746765446651,28.86,161.29,161.21,10.31699854]
[1746765446851,28.86,161.29,161.27,6.2016]
[1746765447450,28.86,161.29,161.21,10.31699854]
[1746765448057,28.86,161.29,161.26,6.2018]
[1746765448854,35.061,161.29,161.26,6.2018]
[1746765449653,6.2013,161.28,161.25,6.2023]
[1746765451251,28.86,161.29,161.24,28.88]
[1746765452553,6.2019,161.27,161.24,35.0827]
[1746765452752,28.86,161.29,161.21,4.0759]
[1746765452952,28.86,161.29,161.22,28.86]
[1746765453761,6.2017,161.27,161.23,6.2031]
[1746765454053,6.2017,161.27,161.22,28.86]
[1746765454554,6.2017,161.27,161.24,6.2026]
[1746765455057,28.86,161.29,161.22,28.86]
[1746765455558,30.835,161.32,161.22,28.86]
[1746765455755,35.0598,161.32,161.24,6.24109854]
[1746765455960,28.86,161.32,161.23,30.8136]
[1746765456260,6.2007,161.3,161.26,6.2017]
[1746765456556,6.2007,161.3,161.23,30.8136]
[1746765457856,6.2007,161.3,161.27,6.2017]
[1746765459265,28.86,161.32,161.28,6.2012]
[1746765459564,28.86,161.32,161.26,28.86]
[1746765459952,35.0599,161.32,161.28,6.2009]
[1746765460453,35.0599,161.32,161.29,6.2008]
[1746765461159,6.2002,161.31,161.28,6.2012]
[1746765461657,28.86,161.32,161.26,35.062]
[1746765462054,28.86,161.32,161.23,59.6736]
[1746765462256,28.86,161.32,161.25,6.2023]
[1746765462457,28.86,161.32,161.23,59.6736]
[1746765462659,28.86,161.32,161.23,65.91469854]
[1746765463060,35.0599,161.32,161.23,65.91469854]
[1746765463255,28.86,161.32,161.23,65.91469854]
[1746765463656,6.2002,161.31,161.28,6.201]
[1746765464560,35.0599,161.32,161.28,6.201]
[1746765464762,28.86,161.32,161.28,6.201]
[1746765465260,35.06,161.32,161.28,6.201]
[1746765465460,28.86,161.32,161.28,6.201]
[1746765466355,6.2005,161.31,161.28,6.201]
[1746765466561,28.86,161.32,161.29,6.2008]
[1746765466965,35.06,161.32,161.29,6.2008]
[1746765468157,28.86,161.32,161.27,28.86]
[1746765468564,28.86,161.32,161.3,6.2002]
[1746765468762,6.1995,161.33,161.3,6.2002]
[1746765468963,28.86,161.36,161.27,57.72]
[1746765469153,6.1987,161.35,161.28,2.1115]
[1746765469560,28.86,161.36,161.28,2.1115]
[1746765469759,28.86,161.36,161.3,6.2002]
[1746765470165,6.1993,161.34,161.3,6.2001]
[1746765471566,6.1993,161.34,161.31,6.2001]
[1746765475068,28.86,161.36,161.31,6.2001]
[1746765475069,28.86,161.36,161.31,28.86]
[1746765475369,30.8468,161.39,161.31,28.86]
[1746765475769,28.84,161.39,161.31,28.86]
[1746765476275,6.1977,161.38,161.31,28.86]
[1746765476468,6.1977,161.38,161.31,57.7]
[1746765476868,6.1977,161.38,161.35,6.1984]
[1746765478171,35.0372,161.39,161.36,6.1981]
[1746765478364,28.84,161.39,161.31,57.7]
[1746765478565,6.1979,161.37,161.31,57.7]
[1746765479075,28.84,161.39,161.31,57.7]
[1746765479567,6.1978,161.37,161.34,6.1987]
[1746765479769,28.84,161.39,161.31,57.7]
[1746765480174,6.1976,161.38,161.31,57.7]
[1746765480675,28.84,161.39,161.31,57.7]
[1746765480875,6.1968,161.4,161.36,6.1978]
[1746765481577,6.1966,161.41,161.35,28.84]
[1746765482174,28.84,161.42,161.39,6.197]
[1746765482470,35.0361,161.42,161.39,6.197]
[1746765482674,28.84,161.42,161.36,1.9762]
[1746765484576,28.84,161.42,161.39,6.1968]
[1746765484767,6.1958,161.43,161.39,6.1968]
[1746765485266,28.84,161.45,161.36,1.9762]
[1746765485476,28.84,161.45,161.37,1.93]
[1746765485875,28.84,161.45,161.38,6.1973]
[1746765486572,6.1966,161.41,161.37,8.1277]
[1746765486772,28.84,161.45,161.37,6.1977]
[1746765487978,6.197,161.4,161.37,6.1977]
[1746765488278,28.84,161.45,161.37,6.1977]
[1746765488879,2.0866,161.44,161.37,6.1977]
[1746765489274,28.84,161.43,161.34,28.84]
[1746765489680,6.1965,161.41,161.34,28.84]
[1746765489981,35.0365,161.41,161.37,6.1976]
[1746765490179,28.84,161.41,161.37,6.1976]
[1746765490983,28.84,161.41,161.38,6.1973]
[1746765491178,28.84,161.41,161.34,28.84]
[1746765491677,28.84,161.41,161.39,6.1967]
[1746765492280,28.84,161.41,161.34,28.84]
[1746765492281,28.84,161.41,161.38,6.1973]
[1746765492481,28.84,161.41,161.34,28.84]
[1746765492875,35.0364,161.41,161.37,6.1976]
[1746765493078,35.0364,161.41,161.34,28.84]
[1746765493680,28.84,161.41,161.38,6.1972]
[1746765494578,35.0363,161.41,161.38,6.1972]
[1746765494776,28.84,161.41,161.39,6.197]
[1746765495281,28.84,161.41,161.38,6.1973]
[1746765496181,28.84,161.41,161.39,6.197]
[1746765497281,28.84,161.41,161.38,6.1973]
[1746765497681,35.0366,161.41,161.34,28.84]
[1746765497883,35.0366,161.41,161.37,6.1976]
[1746765498884,35.0366,161.41,161.38,6.1974]
[1746765500485,6.1966,161.41,161.38,6.1974]
[1746765500682,28.82,161.42,161.34,28.84]
[1746765501784,28.82,161.42,161.39,6.1968]
[1746765501984,28.82,161.42,161.34,28.84]
[1746765502190,28.82,161.42,161.32,35.08109854]
[1746765502379,28.82,161.42,161.33,28.82]
[1746765502783,28.82,161.42,161.35,6.24109854]
[1746765503385,28.82,161.45,161.36,28.82]
[1746765503585,28.82,161.45,161.37,30.8393]
[1746765503784,28.82,161.45,161.37,38.99439854]
[1746765505387,28.82,161.45,161.42,6.1957]
[1746765506286,35.0148,161.45,161.42,6.1957]
[1746765506682,28.82,161.45,161.42,6.1957]
[1746765507589,35.0149,161.45,161.41,6.1961]
[1746765509084,6.1959,161.43,161.39,6.1969]
[1746765509688,6.1953,161.44,161.4,6.1966]
[1746765509887,28.82,161.45,161.37,32.7533]
[1746765510289,6.1959,161.43,161.39,6.1968]
[1746765511886,6.1959,161.42,161.39,6.1968]
[1746765512587,28.82,161.45,161.39,6.1968]
[1746765512588,6.1956,161.43,161.39,6.1968]
[1746765513690,6.1956,161.43,161.4,6.1966]
[1746765513883,6.1956,161.43,161.37,32.7533]
[1746765514490,6.1956,161.43,161.39,6.1968]
[1746765514990,6.1956,161.43,161.4,6.1966]
[1746765515591,6.1953,161.44,161.4,6.1966]
[1746765515992,28.82,161.45,161.4,6.1966]
[1746765516793,6.1957,161.43,161.4,6.1966]
[1746765518995,6.1959,161.42,161.39,6.1969]
[1746765520092,6.1963,161.41,161.38,6.1973]
[1746765520296,28.82,161.45,161.37,28.82]
[1746765520596,6.1958,161.43,161.39,6.1967]
[1746765520895,6.1958,161.43,161.37,28.82]
[1746765522796,6.1953,161.44,161.37,28.82]
[1746765523596,6.1953,161.44,161.4,6.1964]
[1746765525399,6.1956,161.43,161.4,6.1964]
[1746765526302,6.1959,161.42,161.39,6.1969]
[1746765527000,6.1956,161.43,161.4,6.1966]
[1746765527200,28.82,161.45,161.37,28.82]
[1746765528204,6.1961,161.42,161.39,6.197]
[1746765528503,28.82,161.45,161.39,6.197]
[1746765529505,28.82,161.45,161.4,6.1967]
[1746765529704,28.82,161.45,161.36,28.82]
[1746765530304,28.82,161.45,161.36,35.06109854]
[1746765530505,28.82,161.45,161.37,1.9827]
[1746765531208,6.24109854,161.42,161.3,4.2006]
[1746765531505,28.8,161.41,161.31,28.82]
[1746765531704,6.1977,161.38,161.34,6.1986]
[1746765532099,6.1986,161.35,161.32,6.1996]
[1746765532299,6.24109854,161.39,161.31,28.8]
[1746765532605,28.8,161.37,161.31,28.8]
[1746765532801,6.1987,161.35,161.32,6.1995]
[1746765537010,6.1983,161.36,161.32,6.1995]
[1746765537410,28.8,161.37,161.32,6.1995]
[1746765539007,6.1986,161.35,161.32,6.1995]
[1746765540409,6.1986,161.35,161.3,28.82]
[1746765540410,34.9981,161.37,161.33,6.1991]
[1746765540708,28.82,161.41,161.31,4.1177]
[1746765540909,28.82,161.4,161.32,1.9791]
[1746765541109,6.1972,161.39,161.35,6.1983]
[1746765541806,6.1967,161.4,161.34,28.82]
[1746765542002,28.82,161.42,161.34,28.82]
[1746765542413,6.1967,161.4,161.36,6.198]
[1746765543609,6.1967,161.4,161.37,6.1978]
[1746765543810,6.1967,161.4,161.34,28.82]
[1746765544308,6.1967,161.4,161.36,6.198]
[1746765544513,6.1967,161.4,161.34,28.82]
[1746765545508,6.1967,161.4,161.36,6.1979]
[1746765546109,6.1963,161.41,161.34,28.82]
[1746765546516,28.82,161.42,161.34,28.82]
[1746765546811,6.1969,161.4,161.36,6.1979]
[1746765547313,6.1969,161.4,161.34,28.82]
[1746765547812,6.1969,161.4,161.36,6.1978]
[1746765548013,6.1969,161.4,161.34,28.82]
[1746765548210,28.82,161.42,161.34,28.82]
[1746765548410,28.82,161.42,161.36,6.24109854]
[1746765548612,28.82,161.45,161.37,2.0373]
[1746765548914,28.82,161.45,161.38,28.8]
[1746765549814,6.1952,161.44,161.4,6.1966]
[1746765550214,6.1952,161.44,161.38,28.8]
[1746765550916,6.1952,161.44,161.4,6.1963]
[1746765551116,6.1952,161.44,161.38,28.8]
[1746765551716,35.0149,161.45,161.38,28.8]
[1746765551916,28.8,161.48,161.39,6.24109854]
[1746765552111,28.8,161.48,161.39,8.23719854]
[1746765552317,6.1943,161.47,161.43,6.1953]
[1746765553214,6.1943,161.47,161.42,28.8]
[1746765553215,6.1943,161.47,161.44,6.1951]
[1746765553415,28.8,161.48,161.42,28.8]
[1746765553616,28.8,161.48,161.42,35.04109854]
[1746765553918,564.46,161.51,161.42,35.04109854]
[1746765554110,564.46,161.51,161.43,3.953]
[1746765554315,34.9926,161.51,161.43,3.953]
[1746765555015,28.8,161.51,161.48,6.1933]
[1746765555220,28.78,161.54,161.46,28.8]
[1746765555715,28.78,161.54,161.46,30.8879]